bitfinex-derivatives/quotes_BTCF0:USTF0_20250718
["timestamp","ask_amount","ask_price","bid_price","bid_amount"]
[1752818769769,0.2123377,120640.0,120630.0,1.09365906]
[1752818770874,0.003,120640.0,120630.0,1.09365906]
[1752818771071,0.1686422,120640.0,120630.0,0.8212289]
[1752818771271,0.1686422,120640.0,120630.0,0.73285906]
[1752818771472,0.2004922,120640.0,120630.0,1.09365906]
[1752818771672,0.2522222,120640.0,120630.0,1.09365906]
[1752818772175,0.2522222,120640.0,120630.0,0.8212289]
[1752818772375,0.2522222,120640.0,120630.0,1.09365906]
[1752818773478,1.73598488,120640.0,120630.0,0.377606]
[1752818774178,1.46355472,120640.0,120630.0,0.377606]
[1752818774376,1.73598488,120640.0,120630.0,0.377606]
[1752818774576,1.46355472,120640.0,120630.0,0.377606]
[1752818774872,0.15613,120620.0,120610.0,0.41435133]
[1752818775072,0.15613,120620.0,120610.0,0.48693133]
[1752818775073,1.60914986,120620.0,120610.0,0.48693133]
[1752818775278,1.08858583,120620.0,120610.0,0.48693133]
[1752818775778,0.97874583,120620.0,120610.0,0.48693133]
[1752818776479,0.97874583,120620.0,120610.0,0.48893133]
[1752818777179,1.08858583,120620.0,120610.0,0.48893133]
[1752818777378,1.44938583,120620.0,120610.0,0.48893133]
[1752818778076,1.12860599,120620.0,120610.0,0.20925183]
[1752818778382,1.12860599,120620.0,120610.0,0.06988183]
[1752818778678,1.73356599,120620.0,120610.0,0.05809183]
[1752818778979,1.12860599,120620.0,120610.0,0.05809183]
[1752818779182,1.73356599,120620.0,120610.0,0.05809183]
[1752818779683,1.12860599,120620.0,120610.0,0.05609183]
[1752818779979,1.12860599,120620.0,120610.0,0.001]
[1752818780175,0.3422509,120590.0,120580.0,0.14324]
[1752818780379,0.97548106,120590.0,120580.0,0.14324]
[1752818780678,1.09978776,120590.0,120580.0,0.14324]
[1752818780879,0.3422646,120580.0,120570.0,0.13185]
[1752818781080,0.97549476,120580.0,120570.0,0.13185]
[1752818781275,0.97549476,120580.0,120560.0,0.3260057]
[1752818781276,0.1657384,120570.0,120560.0,0.3260057]
[1752818781483,0.7030784,120570.0,120560.0,0.3504257]
[1752818781680,0.82770337,120570.0,120560.0,0.3504257]
[1752818781876,0.90608497,120570.0,120560.0,0.4223057]
[1752818782077,0.72950497,120570.0,120560.0,0.69473586]
[1752818782276,0.72950497,120570.0,120560.0,1.05553586]
[1752818782475,0.72950497,120570.0,120560.0,0.7831057]
[1752818782673,0.72950497,120570.0,120560.0,1.05553586]
[1752818782880,0.12462497,120570.0,120560.0,1.05553586]
[1752818783080,0.72950497,120570.0,120560.0,0.7831057]
[1752818783678,0.72950497,120570.0,120560.0,0.7841057]
[1752818785183,0.72950497,120570.0,120560.0,1.10332967]
[1752818785882,0.72950497,120570.0,120560.0,0.7841057]
[1752818786183,1.43258337,120570.0,120560.0,0.4233057]
[1752818786378,0.90600497,120570.0,120560.0,0.4233057]
[1752818786679,0.90604497,120570.0,120560.0,0.4233057]
[1752818787880,0.19639497,120570.0,120560.0,0.7841057]
[1752818788184,0.12462497,120570.0,120560.0,1.10332967]
[1752818788582,0.12462497,120570.0,120560.0,1.70816967]
[1752818789486,0.7030475,120600.0,120590.0,0.2845309]
[1752818789784,1.43181718,120600.0,120590.0,0.3413909]
[1752818790185,1.43180678,120600.0,120590.0,0.3413909]
[1752818790384,1.43180678,120600.0,120590.0,0.3808309]
[1752818790584,1.43480678,120600.0,120590.0,0.3808309]
[1752818791285,0.66426968,120600.0,120590.0,0.3808309]
[1752818791481,0.80349968,120600.0,120590.0,0.7416309]
[1752818791790,0.19869968,120600.0,120590.0,0.3808309]
[1752818792491,0.30646968,120600.0,120590.0,0.3808309]
[1752818792991,0.19569968,120600.0,120590.0,0.3828309]
[1752818793291,0.19569968,120600.0,120590.0,0.7436309]
[1752818793490,0.15575968,120600.0,120590.0,1.06285487]
[1752818793691,0.07177,120610.0,120600.0,0.4222391]
[1752818793881,0.07177,120610.0,120600.0,0.4636625]
[1752818793882,0.3422234,120610.0,120600.0,0.4636625]
[1752818794087,1.07105084,120610.0,120600.0,0.4636625]
[1752818794288,1.43185084,120610.0,120600.0,0.4636625]
[1752818794595,1.07105084,120610.0,120600.0,0.4636625]
[1752818794890,1.43185084,120610.0,120600.0,0.4636625]
[1752818795091,0.342237,120600.0,120590.0,0.3523751]
[1752818795292,0.17654,120600.0,120590.0,0.4242551]
[1752818795487,0.12516221,120600.0,120590.0,0.74347907]
[1752818795691,0.72980221,120600.0,120590.0,0.74347907]
[1752818795892,0.71111237,120620.0,120610.0,0.2375633]
[1752818796092,0.71111237,120620.0,120610.0,0.3808033]
[1752818796093,1.31575237,120620.0,120610.0,0.3808033]
[1752818796293,1.43975886,120620.0,120610.0,0.3808033]
[1752818797192,0.83511886,120620.0,120610.0,0.3808033]
[1752818797396,1.43975886,120620.0,120610.0,0.3808033]
[1752818797800,0.83511886,120620.0,120610.0,0.21512]
[1752818798096,1.75898283,120620.0,120610.0,0.14324]
[1752818798494,1.75898283,120620.0,120610.0,0.02442]
[1752818798999,1.75898283,120620.0,120610.0,0.13185]
[1752818799499,1.75898283,120620.0,120610.0,0.2975333]
[1752818799701,1.43975886,120620.0,120610.0,0.2975333]
[1752818799897,1.44175886,120620.0,120610.0,0.2975333]
[1752818800093,1.44175886,120620.0,120610.0,0.13185]
[1752818800300,1.44375886,120620.0,120610.0,0.13185]
[1752818800990,0.83911886,120620.0,120610.0,0.13185]
[1752818801196,1.44367886,120620.0,120610.0,0.2975333]
[1752818802103,0.83911886,120620.0,120610.0,0.13185]
[1752818802294,0.2374533,120610.0,120600.0,0.1656863]
[1752818802601,0.82748986,120610.0,120600.0,0.13185]
[1752818802798,0.2374671,120600.0,120590.0,0.3917919]
[1752818803003,1.21909046,120600.0,120590.0,0.3917919]
[1752818803198,1.34358406,120600.0,120590.0,0.3503653]
[1752818803504,1.70438406,120600.0,120590.0,0.3503653]
[1752818804108,1.4320507,120600.0,120590.0,0.3503653]
[1752818804300,1.4320507,120600.0,120590.0,0.3523653]
[1752818804799,1.70438406,120600.0,120590.0,0.02642]
[1752818805308,1.70438406,120600.0,120590.0,0.1921308]
[1752818805506,1.4320507,120600.0,120590.0,0.1921308]
[1752818805705,1.4320507,120600.0,120590.0,0.1657108]
[1752818805907,1.70438406,120600.0,120590.0,0.1657108]
[1752818806401,0.1657383,120570.0,120560.0,0.10743]
[1752818806607,1.57985166,120570.0,120560.0,0.2975991]
[1752818806804,1.70443192,120570.0,120560.0,0.2975991]
[1752818807005,1.43209856,120570.0,120560.0,0.3089891]
[1752818807304,1.07129856,120570.0,120560.0,0.3089891]
[1752818807505,0.165752,120560.0,120550.0,0.35614108]
[1752818807705,1.57990536,120560.0,120550.0,0.30907108]
[1752818807908,1.70451188,120560.0,120550.0,0.3089985]
[1752818808209,1.70451188,120560.0,120550.0,0.02442]
[1752818808903,0.3461258,120550.0,120540.0,0.41269166]
[1752818809206,1.43611038,120550.0,120540.0,0.37124996]
[1752818809412,1.15108847,120550.0,120540.0,0.06484126]
[1752818809611,1.15108847,120550.0,120530.0,0.13296]
[1752818809612,0.1976495,120540.0,120530.0,0.13296]
[1752818809806,0.7069395,120540.0,120530.0,0.2987533]
[1752818810006,0.83203355,120540.0,120530.0,0.2987533]
[1752818810205,1.43647355,120540.0,120530.0,0.13296]
[1752818810807,1.43647355,120540.0,120530.0,0.2987533]
[1752818811111,1.43647355,120540.0,120530.0,0.13296]
[1752818811311,0.83203355,120540.0,120530.0,0.13296]
[1752818811611,1.43651355,120540.0,120530.0,0.13296]
[1752818811805,1.43651355,120540.0,120530.0,0.1677933]
[1752818812007,1.75593164,120540.0,120530.0,0.006]
[1752818812505,1.75593164,120540.0,120530.0,0.07083425]
[1752818812706,1.75593164,120540.0,120530.0,0.006]
[1752818812911,1.75593164,120540.0,120510.0,0.13296]
[1752818812912,0.238687,120520.0,120510.0,0.13296]
[1752818813108,1.309837,120520.0,120510.0,0.13296]
[1752818813306,1.43470092,120520.0,120510.0,0.2987808]
[1752818814711,1.07390092,120520.0,120510.0,0.2987808]
[1752818814906,1.43470092,120520.0,120510.0,0.3017807]
[1752818815112,1.43470092,120520.0,120510.0,0.2466307]
[1752818815413,0.83022092,120520.0,120510.0,0.1738207]
[1752818815619,1.43470092,120520.0,120510.0,0.1738207]
[1752818815818,0.83022092,120520.0,120510.0,0.3067807]
[1752818816116,1.44301666,120520.0,120510.0,0.1977307]
[1752818816307,1.76243475,120520.0,120510.0,0.1738207]
[1752818816716,1.44301666,120520.0,120510.0,0.1738207]
[1752818817019,1.44301666,120520.0,120510.0,0.008]
[1752818817218,0.83853666,120520.0,120510.0,0.008]
[1752818817418,1.44305666,120520.0,120510.0,0.008]
[1752818817818,1.76247475,120520.0,120510.0,0.008]
[1752818818020,1.76247475,120520.0,120510.0,0.1738207]
[1752818818218,1.44305666,120520.0,120510.0,0.1738207]
[1752818819014,0.83853666,120520.0,120510.0,0.1738207]
[1752818819220,1.44305666,120520.0,120510.0,0.1738207]
[1752818819416,1.44301666,120520.0,120510.0,0.1738207]
[1752818819714,1.44309666,120520.0,120510.0,0.1738207]
[1752818820217,1.44309666,120520.0,120510.0,0.1977307]
[1752818820619,1.08229666,120520.0,120510.0,0.1977307]
[1752818820816,1.08229666,120520.0,120510.0,0.3886807]
[1752818821517,1.44309666,120520.0,120510.0,0.45543206]
[1752818821719,1.08229666,120520.0,120510.0,0.45543206]
[1752818821918,1.44309666,120520.0,120510.0,0.45543206]
[1752818822520,0.83853666,120520.0,120510.0,0.21894136]
[1752818822715,1.76247475,120520.0,120510.0,0.09866136]
[1752818823017,0.2290745,120500.0,120490.0,0.2988062]
[1752818823217,0.8335945,120500.0,120490.0,0.2988062]
[1752818823521,0.95757288,120500.0,120490.0,0.2988062]
[1752818823723,1.31837288,120500.0,120490.0,0.2988083]
[1752818824323,1.31837288,120500.0,120490.0,0.3100383]
[1752818824621,1.31837288,120500.0,120490.0,0.3190383]
[1752818824821,1.15253838,120500.0,120490.0,0.3190383]
[1752818825121,0.95757288,120500.0,120490.0,0.3140383]
[1752818825324,0.95953288,120500.0,120490.0,0.3140383]
[1752818825622,0.95953288,120500.0,120490.0,0.3100383]
[1752818825818,1.32133288,120500.0,120490.0,0.3100383]
[1752818826018,1.32133288,120500.0,120490.0,0.21033473]
[1752818826419,1.32133288,120500.0,120490.0,0.17519473]
[1752818827019,1.32133288,120500.0,120490.0,0.23199303]
[1752818827326,1.03627097,120500.0,120490.0,0.06614473]
[1752818827514,0.1977183,120490.0,120480.0,0.10905]
[1752818827822,0.71513121,120490.0,120480.0,0.13296]
[1752818828416,0.71513121,120490.0,120480.0,0.310052]
[1752818828621,1.31965121,120490.0,120480.0,0.310052]
[1752818829313,1.32065121,120490.0,120480.0,0.310052]
[1752818830821,1.32165121,120490.0,120480.0,0.310052]
[1752818831221,0.71713121,120490.0,120480.0,0.37800032]
[1752818831420,1.32161121,120490.0,120480.0,0.37800032]
[1752818831924,1.32161121,120490.0,120480.0,0.44867032]
[1752818832124,0.12724291,120490.0,120480.0,1.12888841]
[1752818832326,0.73176291,120490.0,120480.0,1.12888841]
[1752818832526,0.12724291,120490.0,120480.0,1.12888841]
[1752818832724,0.73172291,120490.0,120480.0,1.12888841]
[1752818833021,0.002,120490.0,120480.0,1.12888841]
[1752818833920,0.001,120490.0,120480.0,1.12888841]
[1752818834117,0.60448,120500.0,120490.0,0.3807083]
[1752818834316,0.60448,120500.0,120490.0,1.06092639]
[1752818834526,0.72880366,120500.0,120490.0,1.06092639]
[1752818834721,0.89463816,120500.0,120490.0,1.06092639]
[1752818835129,0.89663816,120500.0,120490.0,1.06092639]
[1752818835428,0.89663816,120500.0,120490.0,0.70012639]
[1752818835722,1.03561625,120500.0,120490.0,0.1771]
[1752818835922,1.64005625,120500.0,120490.0,0.06015]
[1752818836222,0.71619816,120500.0,120490.0,0.2259983]
[1752818836428,0.95983816,120500.0,120490.0,0.3807083]
[1752818836726,0.35539816,120500.0,120490.0,0.3807083]
[1752818837027,0.32402816,120500.0,120490.0,0.3807083]
[1752818837228,0.92846816,120500.0,120490.0,0.3807083]
[1752818839333,1.32063816,120500.0,120490.0,0.3807083]
[1752818839824,1.32063816,120500.0,120490.0,0.3100383]
[1752818840033,1.64005625,120500.0,120490.0,0.06015]
[1752818840824,0.1658483,120490.0,120480.0,0.30312412]
[1752818841128,0.5910383,120490.0,120480.0,0.36010412]
[1752818841424,1.6397286,120490.0,120480.0,0.06794832]
[1752818841629,0.165862,120480.0,120470.0,0.2921693]
[1752818841931,0.230252,120480.0,120470.0,0.2921693]
[1752818842126,0.71544129,120480.0,120470.0,0.2921693]
[1752818842725,0.71544129,120480.0,120470.0,0.2931693]
[1752818843221,0.71544129,120480.0,120470.0,0.1273]
[1752818843926,0.71644129,120480.0,120470.0,0.1273]
[1752818844428,1.03585938,120480.0,120470.0,0.2931758]
[1752818844630,1.03585938,120480.0,120470.0,0.1273]
[1752818845033,1.03585938,120480.0,120470.0,0.1263]
[1752818845233,1.03685938,120480.0,120470.0,0.19285784]
[1752818845834,1.03685938,120480.0,120470.0,0.35873364]
[1752818846033,0.71744129,120480.0,120470.0,0.33462364]
[1752818846233,1.03685938,120480.0,120470.0,0.33462364]
[1752818846432,1.03685938,120480.0,120470.0,0.16874784]
[1752818846932,1.64129938,120480.0,120470.0,0.28941364]
[1752818847136,1.64129938,120480.0,120470.0,0.35873364]
[1752818847730,1.32188129,120480.0,120470.0,0.35873364]
[1752818850140,1.32188129,120480.0,120470.0,0.35885755]
[1752818850541,1.03685938,120480.0,120470.0,0.35885755]
[1752818850742,1.64125938,120480.0,120470.0,0.35885755]
[1752818850943,1.32184129,120480.0,120470.0,0.35885755]
[1752818851136,1.03685938,120480.0,120470.0,0.06668175]
[1752818851337,1.03685938,120480.0,120470.0,0.03531175]
[1752818851537,1.64125938,120480.0,120470.0,0.00012391]
[1752818852838,1.03685938,120480.0,120470.0,0.00012391]
[1752818853242,1.64125938,120480.0,120470.0,0.00012391]
[1752818854142,2.05726738,120480.0,120470.0,0.00012391]
[1752818854344,2.05726738,120480.0,120440.0,0.333683]
[1752818854345,0.1659033,120450.0,120440.0,0.333683]
[1752818854646,1.2550898,120450.0,120440.0,0.417433]
[1752818854836,0.2899298,120450.0,120440.0,0.417433]
[1752818855042,0.8942898,120450.0,120440.0,0.417433]
[1752818855544,0.8942898,120450.0,120440.0,0.418433]
[1752818856143,0.8942898,120450.0,120440.0,0.420433]
[1752818857747,1.2550898,120450.0,120440.0,0.420433]
[1752818858245,1.2550898,120450.0,120440.0,0.48610748]
[1752818860856,0.7283865,120450.0,120440.0,0.48610748]
[1752818861450,0.8942898,120450.0,120440.0,0.48610748]
[1752818864143,0.1240265,120450.0,120440.0,0.80552557]
[1752818864751,0.1240265,120450.0,120440.0,1.16632557]
[1752818865456,0.1240265,120450.0,120440.0,0.80552557]
[1752818865653,0.1240265,120450.0,120440.0,1.16632557]
[1752818865853,0.1240265,120450.0,120440.0,0.80552557]
[1752818866053,0.2899298,120450.0,120440.0,1.16632557]
[1752818866352,0.1240265,120450.0,120440.0,1.16632557]
[1752818866552,0.2899298,120450.0,120440.0,1.16632557]
[1752818866744,0.2899298,120450.0,120440.0,0.84690748]
[1752818866950,0.2899298,120450.0,120440.0,0.48610748]
[1752818871557,0.6507298,120450.0,120440.0,0.48610748]
[1752818872356,0.97014789,120450.0,120440.0,0.44463088]
[1752818872657,0.6507298,120450.0,120440.0,0.40208088]
[1752818873154,1.2548498,120450.0,120440.0,0.40208088]
[1752818873349,0.6507298,120450.0,120440.0,0.40208088]
[1752818873546,0.2899298,120450.0,120440.0,0.43986088]
[1752818873756,0.8940098,120450.0,120440.0,0.43986088]
[1752818873958,0.1240265,120450.0,120440.0,0.43986088]
[1752818874154,0.8940098,120450.0,120440.0,0.43986088]
[1752818874956,0.7281065,120450.0,120440.0,0.43986088]
[1752818875858,0.1240265,120450.0,120440.0,0.43986088]
[1752818876061,0.7280665,120450.0,120440.0,1.12007897]
[1752818876358,0.7280665,120450.0,120440.0,0.80066088]
[1752818876657,0.7280665,120450.0,120410.0,0.12516]
[1752818876658,0.0414849,120430.0,120410.0,0.12516]
[1752818876857,1.45020279,120420.0,120410.0,0.10306]
[1752818877057,0.1659584,120410.0,120400.0,0.12516]
[1752818877357,1.25479539,120410.0,120400.0,0.17111915]
[1752818877565,1.57421348,120410.0,120400.0,0.17111915]
[1752818877853,1.57417348,120410.0,120400.0,0.17111915]
[1752818878252,1.57417348,120410.0,120400.0,0.06805915]
[1752818878451,0.1659721,120400.0,120390.0,0.10306]
[1752818878656,0.84619019,120400.0,120390.0,0.10306]
[1752818878952,0.97146308,120400.0,120390.0,0.2690459]
[1752818879152,0.29124499,120400.0,120390.0,0.3721359]
[1752818879358,0.89520499,120400.0,120390.0,0.3721359]
[1752818879549,1.25600499,120400.0,120390.0,0.3721359]
[1752818879754,0.89520499,120400.0,120390.0,0.3721359]
[1752818879954,0.89520499,120400.0,120390.0,0.7329359]
[1752818880557,0.12527289,120400.0,120390.0,0.7329359]
[1752818880753,0.2074384,120420.0,120410.0,0.3721084]
[1752818880948,0.60404,120420.0,120410.0,0.3721084]
[1752818881158,0.97061399,120430.0,120420.0,0.18405]
[1752818881358,1.57465399,120430.0,120420.0,0.20615]
[1752818881556,1.69852765,120430.0,120420.0,0.20615]
[1752818881757,1.69852765,120430.0,120420.0,0.3720946]
[1752818882059,0.28981546,120430.0,120420.0,0.7328946]
[1752818882459,0.89381546,120430.0,120420.0,0.7328946]
[1752818883057,0.97003355,120430.0,120420.0,0.3720946]
[1752818884255,0.89385546,120430.0,120420.0,0.3720946]
[1752818884456,1.25465546,120430.0,120420.0,0.3720946]
[1752818884655,0.97003355,120430.0,120420.0,0.12516]
[1752818884961,0.97203355,120430.0,120420.0,0.12516]
[1752818885156,1.57603355,120430.0,120420.0,0.12516]
[1752818885662,1.57603355,120430.0,120420.0,0.13645]
[1752818886056,1.57803355,120430.0,120420.0,0.13645]
[1752818886257,1.25861546,120430.0,120420.0,0.13645]
[1752818886560,1.57803355,120430.0,120420.0,0.13645]
[1752818887157,1.57803355,120430.0,120420.0,0.3023947]
[1752818887461,1.25861546,120430.0,120420.0,0.3720947]
[1752818887963,1.57803355,120430.0,120420.0,0.3720947]
[1752818888164,1.57903355,120430.0,120420.0,0.3720947]
[1752818888762,1.25961546,120430.0,120420.0,0.3720947]
[1752818888962,1.58003355,120430.0,120420.0,0.3720947]
[1752818889354,0.97603355,120430.0,120420.0,0.3720947]
[1752818889658,1.26061546,120430.0,120420.0,0.3720947]
[1752818890062,1.26061546,120430.0,120420.0,0.20615]
[1752818890258,1.58003355,120430.0,120420.0,0.20615]
[1752818890962,1.58003355,120430.0,120420.0,0.10306]
[1752818891163,1.58003355,120430.0,120420.0,0.12516]
[1752818891463,1.57999355,120430.0,120420.0,0.20615]
[1752818892566,1.57999355,120430.0,120420.0,0.10306]
[1752818892862,1.26057546,120430.0,120420.0,0.10306]
[1752818893157,0.97603355,120430.0,120420.0,0.10306]
[1752818893364,1.57999355,120430.0,120420.0,0.10306]
[1752818893759,0.97603355,120430.0,120420.0,0.10306]
[1752818893960,1.57999355,120430.0,120420.0,0.10306]
[1752818894160,0.97603355,120430.0,120420.0,0.10306]
[1752818894463,1.57999355,120430.0,120420.0,0.10306]
[1752818895357,1.26057546,120430.0,120420.0,0.10306]
[1752818895564,1.57999355,120430.0,120420.0,0.10306]
[1752818896369,1.57999355,120430.0,120420.0,0.12516]
[1752818897462,1.26057546,120430.0,120420.0,0.12516]
[1752818897663,1.57999355,120430.0,120420.0,0.12516]
[1752818898465,1.57999355,120430.0,120420.0,0.2911046]
[1752818898868,1.26057546,120430.0,120420.0,0.2911046]
[1752818899069,1.57999355,120430.0,120420.0,0.2911046]
[1752818900069,0.1659446,120420.0,120410.0,0.2952861]
[1752818900470,0.60989712,120420.0,120410.0,0.3745061]
[1752818901471,0.29247903,120420.0,120410.0,0.3745061]
[1752818901671,0.29347903,120420.0,120410.0,0.3745061]
[1752818902973,0.5666154,120420.0,120410.0,0.3745061]
[1752818904371,0.29347903,120420.0,120410.0,0.3745061]
[1752818904570,0.5666154,120420.0,120410.0,0.3745061]
[1752818904768,0.29347903,120420.0,120410.0,0.3745061]
[1752818905167,0.5666154,120420.0,120410.0,0.3745061]
[1752818905363,0.1689446,120420.0,120410.0,0.7353061]
[1752818905568,0.56685364,120420.0,120410.0,0.20855]
[1752818905772,0.56685364,120420.0,120410.0,0.3745085]
[1752818906876,0.92765364,120420.0,120410.0,0.20855]
[1752818907076,1.53145364,120420.0,120410.0,0.12933]
[1752818908275,0.1659585,120410.0,120400.0,0.2953013]
[1752818908470,0.43909487,120410.0,120400.0,0.2953013]
[1752818908668,0.56301101,120410.0,120400.0,0.12933]
[1752818908873,1.16677101,120410.0,120400.0,0.10511]
[1752818909073,0.1659722,120400.0,120390.0,0.19452045]
[1752818909368,0.56384528,120400.0,120390.0,0.19452045]
[1752818910469,0.92464528,120400.0,120390.0,0.19452045]
[1752818910669,0.93304577,120400.0,120390.0,0.19452045]
[1752818910876,1.20618214,120400.0,120390.0,0.17030045]
[1752818911077,0.98020153,120400.0,120390.0,0.17030045]
[1752818911276,0.98020153,120400.0,120390.0,0.19452045]
[1752818911479,0.98020153,120400.0,120390.0,0.17030045]
[1752818911875,1.58396153,120400.0,120390.0,0.17030045]
[1752818912277,1.58392153,120400.0,120390.0,0.19452045]
[1752818912477,0.98120153,120400.0,120390.0,0.19452045]
[1752818912779,1.58496153,120400.0,120390.0,0.19452045]
[1752818913082,0.98120153,120400.0,120390.0,0.19452045]
[1752818913282,1.58496153,120400.0,120390.0,0.19452045]
[1752818915675,0.98120153,120400.0,120390.0,0.19452045]
[1752818916075,1.58492153,120400.0,120390.0,0.19452045]
[1752818916985,1.58712153,120400.0,120390.0,0.19452045]
[1752818917187,1.2668294,120400.0,120390.0,0.19452045]
[1752818917383,1.58712153,120400.0,120390.0,0.19452045]
[1752818918382,1.2668294,120400.0,120390.0,0.19452045]
[1752818918587,1.58712153,120400.0,120390.0,0.19452045]
[1752818918787,1.2668294,120400.0,120390.0,0.19452045]
[1752818918982,0.98120153,120400.0,120390.0,0.19452045]
[1752818919184,1.58680153,120400.0,120390.0,0.19452045]
[1752818919382,1.58680153,120400.0,120390.0,0.06519045]
[1752818919684,0.165986,120390.0,120380.0,0.1419]
[1752818919888,0.48627813,120390.0,120380.0,0.3871198]
[1752818920086,0.89695287,120390.0,120380.0,0.3871198]
[1752818920889,0.89695287,120390.0,120380.0,0.3881198]
[1752818921788,0.89695287,120390.0,120380.0,0.3891198]
[1752818921991,0.89695287,120390.0,120380.0,0.7499198]
[1752818922888,0.89707287,120390.0,120380.0,0.7499198]
[1752818923087,0.29063287,120390.0,120380.0,0.7499198]
[1752818923289,0.73272687,120390.0,120380.0,1.07021193]
[1752818923686,0.815557,120400.0,120390.0,0.350316]
[1752818923988,0.93960094,120400.0,120390.0,0.735336]
[1752818924384,0.33152094,120400.0,120390.0,0.735336]
[1752818926580,0.33252094,120400.0,120390.0,0.735336]
[1752818926779,0.12504394,120400.0,120390.0,0.735336]
[1752818927389,0.29101614,120400.0,120390.0,0.735336]
[1752818928288,0.001,120400.0,120390.0,1.05562813]
[1752818931193,0.8557316,120420.0,120410.0,0.3713285]
[1752818931487,0.97949976,120420.0,120410.0,0.3713285]
[1752818931991,0.12376816,120420.0,120410.0,0.3713285]
[1752818932193,0.12676816,120420.0,120410.0,1.05242063]
[1752818932492,0.12676816,120420.0,120410.0,0.7321285]
[1752818932792,0.12876816,120420.0,120410.0,0.7321285]
[1752818932985,0.12876816,120420.0,120410.0,1.00521297]
[1752818933183,0.12876816,120420.0,120410.0,0.7321285]
[1752818933487,0.12876816,120420.0,120410.0,1.00521297]
[1752818933989,0.04573452,120420.0,120410.0,1.00521297]
[1752818934987,0.04440978,120420.0,120410.0,0.7321285]
[1752818935192,0.04440978,120420.0,120410.0,1.00521297]
[1752818935786,0.04440978,120420.0,120410.0,0.7321285]
[1752818935992,0.04440978,120420.0,120410.0,1.00521297]
[1752818936992,0.005,120420.0,120410.0,1.00521297]
[1752818937496,0.25721601,120440.0,120430.0,0.3713009]
[1752818937690,0.86173601,120440.0,120430.0,0.3713009]
[1752818937891,0.98645701,120440.0,120430.0,0.3713009]
[1752818938896,0.95597431,120440.0,120430.0,0.3713009]
[1752818939094,0.91449261,120440.0,120430.0,0.3713009]
[1752818939296,0.74856971,120440.0,120430.0,0.3713009]
[1752818939497,0.740241,120440.0,120430.0,0.7321009]
[1752818939894,0.3016382,120440.0,120430.0,0.7321009]
[1752818940994,0.9072382,120440.0,120430.0,0.7321009]
[1752818941197,1.54929467,120440.0,120430.0,0.20537]
[1752818941398,1.54925467,120440.0,120430.0,0.10331]
[1752818941702,1.82233914,120440.0,120430.0,0.10331]
[1752818941902,1.21681914,120440.0,120430.0,0.10331]
[1752818942096,1.82297914,120440.0,120430.0,0.2692409]
[1752818942501,1.54989467,120440.0,120430.0,0.2692409]
[1752818942699,1.54989467,120440.0,120430.0,0.10331]
[1752818942994,1.54981467,120440.0,120430.0,0.10331]
[1752818943199,1.55049467,120440.0,120430.0,0.10331]
[1752818943400,0.1659309,120430.0,120420.0,0.2908441]
[1752818943600,0.79981537,120430.0,120420.0,0.2908441]
[1752818943795,0.92364752,120430.0,120420.0,0.2908441]
[1752818945000,0.92664752,120430.0,120420.0,0.2908441]
[1752818945203,0.93064752,120430.0,120420.0,0.2908441]
[1752818945508,1.53708752,120430.0,120420.0,0.2908441]
[1752818945705,0.93064752,120430.0,120420.0,0.3713141]
[1752818945905,1.53712752,120430.0,120420.0,0.3713141]
[1752818947007,0.65756305,120430.0,120420.0,0.3713141]
[1752818947307,0.13083215,120430.0,120420.0,0.7321141]
[1752818947608,0.73747215,120430.0,120420.0,0.7321141]
[1752818948004,0.73747215,120430.0,120420.0,0.3713141]
[1752818948205,0.73747215,120430.0,120420.0,0.7321141]
[1752818948506,0.90340305,120430.0,120420.0,0.7321141]
[1752818948907,0.56984752,120430.0,120420.0,0.3713141]
[1752818949510,1.18060752,120430.0,120420.0,0.3713141]
[1752818950310,0.90752305,120430.0,120420.0,0.3713141]
[1752818950604,1.54140752,120430.0,120420.0,0.3713141]
[1752818951007,1.18060752,120430.0,120420.0,0.3713141]
[1752818951607,0.90752305,120430.0,120420.0,0.3713141]
[1752818951803,1.18008752,120430.0,120420.0,0.3713141]
[1752818952009,1.18008752,120430.0,120420.0,0.43898889]
[1752818952813,1.18008752,120430.0,120420.0,0.43898949]
[1752818953012,1.54088752,120430.0,120420.0,0.43898949]
[1752818953512,1.18008752,120430.0,120420.0,0.43898949]
[1752818953809,0.56984752,120430.0,120420.0,0.43898949]
[1752818954011,1.54088752,120430.0,120420.0,0.43898949]
[1752818956415,0.93064752,120430.0,120420.0,0.17098479]
[1752818956614,1.54500752,120430.0,120420.0,0.17098479]
[1752818956815,1.27192305,120430.0,120420.0,0.17098479]
[1752818957015,1.54500752,120430.0,120420.0,0.17098479]
[1752818957214,0.93064752,120430.0,120420.0,0.19257479]
[1752818957516,1.54492752,120430.0,120420.0,0.19257479]
[1752818958015,0.93064752,120430.0,120420.0,0.19257479]
[1752818958210,1.54492752,120430.0,120420.0,0.19257479]
[1752818960319,1.27184305,120430.0,120420.0,0.19257479]
[1752818960519,1.54492752,120430.0,120420.0,0.19257479]
[1752818960914,0.65756305,120430.0,120420.0,0.19257479]
[1752818961214,0.65756305,120430.0,120420.0,0.06767479]
[1752818961420,0.1659447,120420.0,120410.0,0.11386]
[1752818961718,0.65133244,120420.0,120410.0,0.11386]
[1752818962109,0.92441691,120420.0,120410.0,0.11386]
[1752818962313,1.27837244,120420.0,120410.0,0.13662]
[1752818962513,1.27837244,120420.0,120410.0,0.45237967]
[1752818962720,1.55145691,120420.0,120410.0,0.45237967]
[1752818962920,1.55245691,120420.0,120410.0,0.28642117]
[1752818963121,1.55345691,120420.0,120410.0,0.28642117]
[1752818963822,1.28037244,120420.0,120410.0,0.45237967]
[1752818964321,1.55345691,120420.0,120410.0,0.45237967]
[1752818965217,1.28037244,120420.0,120410.0,0.45237967]
[1752818965420,1.55345691,120420.0,120410.0,0.45237967]
[1752818965620,0.65333244,120420.0,120410.0,0.45237967]
[1752818965916,1.55405691,120420.0,120410.0,0.45237967]
[1752818966124,1.28097244,120420.0,120410.0,0.45237967]
[1752818966313,1.55405691,120420.0,120410.0,0.45237967]
[1752818966519,1.28097244,120420.0,120410.0,0.45237967]
[1752818966718,1.55357691,120420.0,120410.0,0.45237967]
[1752818968023,1.28049244,120420.0,120410.0,0.45237967]
[1752818968225,1.55357691,120420.0,120410.0,0.45237967]
[1752818968619,1.19277691,120420.0,120410.0,0.45237967]
[1752818970025,1.19181691,120420.0,120410.0,0.45237967]
[1752818970220,0.56561691,120420.0,120410.0,0.45237967]
[1752818970426,0.12658774,120420.0,120410.0,0.45237967]
[1752818970623,0.75186774,120420.0,120410.0,0.45237967]
[1752818970822,0.12658774,120420.0,120410.0,0.81317967]
[1752818971121,0.12658774,120420.0,120410.0,1.08626414]
[1752818971122,0.75186774,120420.0,120410.0,1.08626414]
[1752818971327,0.75186774,120420.0,120410.0,0.81317967]
[1752818971529,0.75186774,120420.0,120410.0,1.08626414]
[1752818971829,0.12658774,120420.0,120410.0,1.08626414]
[1752818972223,0.002,120420.0,120410.0,1.08626414]
[1752818972422,0.002,120420.0,120410.0,1.25236014]